bitfinex/quotes_SOLUSD_20250416
["timestamp","ask_amount","ask_price","bid_price","bid_amount"]
[1744827056028,54.01621248,127.65,127.6,54.01621248]
[1744827056349,54.01621248,127.61,127.52,7.84190715]
[1744827056597,54.01621248,127.62,127.54,54.01621248]
[1744827056730,7.83514847,127.63,127.59,54.01621248]
[1744827056920,9.8369,127.77,127.62,54.01621248]
[1744827057242,27.39726026,127.75,127.71,54.01621248]
[1744827057552,27.39726026,127.75,127.65,26.0]
[1744827057553,54.01621248,127.73,127.65,26.0]
[1744827057756,54.01621248,127.72,127.67,54.01621248]
[1744827058562,54.01621248,127.68,127.58,244.16]
[1744827058734,61.85136095,127.63,127.54,7.84067743]
[1744827059050,7.82901432,127.73,127.62,108.03242496]
[1744827059251,54.01621248,127.72,127.66,54.01621248]
[1744827059542,61.8452268,127.73,127.67,54.01621248]
[1744827059746,54.01621248,127.69,127.64,54.01621248]
[1744827059935,54.01621248,127.68,127.63,54.01621248]
[1744827060135,54.01621248,127.65,127.56,54.01621248]
[1744827060340,18.64964886,127.69,127.62,54.01621248]
[1744827060341,54.01621248,127.67,127.62,54.01621248]
[1744827060542,54.01621248,127.66,127.61,54.01621248]
[1744827060744,18.64964886,127.72,127.65,54.01621248]
[1744827060931,54.01621248,127.7,127.61,26.0]
[1744827061130,18.64964886,127.67,127.58,54.01621248]
[1744827061337,27.40155013,127.73,127.66,54.01621248]
[1744827061532,7.82901432,127.73,127.68,54.01621248]
[1744827061851,18.64964886,127.68,127.59,26.0]
[1744827062059,54.01621248,127.63,127.58,54.01621248]
[1744827062356,26.0,127.72,127.62,54.01621248]
[1744827062556,72.66586134,127.72,127.67,54.01621248]
[1744827062755,7.82901432,127.73,127.64,7.83453462]
[1744827062958,8.8369,127.77,127.71,54.01621248]
[1744827063162,7.82533844,127.79,127.68,54.01621248]
[1744827063459,263.77804622,127.83,127.77,54.01621248]
[1744827063633,27.38225628,127.82,127.75,54.01621248]
[1744827063844,13.0244,127.84,127.78,54.01621248]
[1744827064051,13.0244,127.84,127.74,80.01621248]
[1744827064052,61.83665511,127.87,127.82,54.01621248]
[1744827064259,30.2,127.88,127.84,54.01621248]
[1744827064473,30.2,127.88,127.77,0.14216157]
[1744827064474,38.01991646,127.88,127.82,54.01621248]
[1744827064763,38.01991646,127.88,127.74,54.01621248]
[1744827064764,54.01621248,127.84,127.79,54.01621248]
[1744827065055,30.2,127.88,127.83,54.01621248]
[1744827065257,30.2,127.88,127.78,7.82580723]
[1744827065258,38.01986614,127.88,127.78,7.82580723]
[1744827065559,54.01621248,127.81,127.72,19.57272544]
[1744827065735,54.01621248,127.77,127.71,7.83024038]
[1744827065934,0.14216157,127.87,127.76,54.01621248]
[1744827066137,54.01621248,127.86,127.75,0.28432314]
[1744827066359,54.01621248,127.79,127.7,0.14216157]
[1744827066558,18.64964886,127.82,127.72,54.01621248]
[1744827066559,54.01621248,127.77,127.72,54.01621248]
[1744827066860,54.01621248,127.77,127.72,7.82949389]
[1744827067160,7.82288977,127.83,127.69,7.83146683]
[1744827067342,72.66586134,127.81,127.72,26.0]
[1744827067653,7.82166601,127.85,127.7,18.79181043]
[1744827067861,7.82166601,127.85,127.8,54.01621248]
[1744827068030,54.01621248,127.84,127.79,54.01621248]
[1744827068236,30.2,127.88,127.83,54.01621248]
[1744827068432,28.3288,127.96,127.87,54.01621248]
[1744827068659,6.77209294,127.98,127.92,54.01621248]
[1744827068660,54.01621248,127.97,127.92,54.01621248]
[1744827068861,58.8786,128.02,127.86,80.01621248]
[1744827068862,38.8786,128.02,127.94,54.01621248]
[1744827069036,54.01621248,128.0,127.9,7.81850242]
[1744827069357,26.0,128.0,127.9,7.81850242]
[1744827069535,54.01621248,127.91,127.78,19.56383986]
[1744827069732,38.6505,127.9,127.82,54.01621248]
[1744827069934,38.6505,127.9,127.81,54.01621248]
[1744827070130,18.64964886,127.89,127.76,27.39511583]
[1744827070341,18.64964886,127.89,127.78,30.0]
[1744827070555,54.01621248,127.88,127.82,54.01621248]
[1744827070730,38.6505,127.9,127.82,54.01621248]
[1744827070934,54.01621248,127.88,127.82,54.01621248]
[1744827071259,84.21621248,127.9,127.85,54.01621248]
[1744827071759,54.01621248,127.88,127.82,26.0]
[1744827071939,0.03,127.91,127.87,54.01621248]
[1744827072139,0.03,127.91,127.9,54.01621248]
[1744827072335,18.64964886,127.9,127.77,30.18]
[1744827072856,0.03,127.91,127.89,54.01621248]
[1744827073059,0.03,127.91,127.9,134.3167481]
[1744827073369,0.03,127.91,127.9,26.0]
[1744827073662,54.04621248,127.91,127.83,54.01621248]
[1744827073964,54.01621248,127.88,127.83,54.01621248]
[1744827074140,54.01621248,127.85,127.79,7.82533844]
[1744827074338,18.67964886,127.91,127.83,54.01621248]
[1744827074649,54.01621248,127.88,127.84,54.01621248]
[1744827074852,0.03,127.91,127.8,54.01621248]
[1744827075033,0.03,127.91,127.88,54.01621248]
[1744827075381,0.03,127.91,127.89,54.01621248]
[1744827075671,0.03,127.91,127.9,54.01621248]
[1744827075882,0.03,127.91,127.81,7.82411391]
[1744827075883,54.04621248,127.91,127.81,7.82411391]
[1744827076043,54.01621248,127.86,127.74,101.91629663]
[1744827076240,54.01621248,127.83,127.8,30.0]
[1744827076438,54.01621248,127.81,127.8,30.0]
[1744827076660,126.68207382,127.81,127.69,7.83093875]
[1744827076966,54.01621248,127.74,127.68,7.83190838]
[1744827077156,54.01621248,127.74,127.69,80.01621248]
[1744827077470,54.01621248,127.74,127.69,54.01621248]
[1744827077650,54.01621248,127.74,127.66,30.18]
[1744827077849,54.01621248,127.69,127.64,54.01621248]
[1744827078055,7.82824552,127.75,127.68,108.03242496]
[1744827078364,72.66586134,127.74,127.63,7.83514847]
[1744827078552,54.01621248,127.68,127.6,30.18]
[1744827078746,54.01621248,127.67,127.62,84.01621248]
[1744827078967,26.48011087,127.71,127.58,7.83821915]
[1744827079176,7.82717595,127.76,127.68,54.01621248]
[1744827079348,8.5857,127.83,127.75,54.01621248]
[1744827079545,54.01621248,127.8,127.75,54.01621248]
[1744827079851,7.82350179,127.82,127.73,54.01621248]
[1744827080051,8.5857,127.83,127.77,54.01621248]
[1744827080273,38.00179461,127.85,127.78,54.01621248]
[1744827080573,54.01621248,127.79,127.71,80.01621248]
[1744827080863,54.01621248,127.82,127.77,54.01621248]
[1744827081070,30.18,127.85,127.81,54.01621248]
[1744827081268,54.01621248,127.82,127.71,56.60648471]
[1744827081440,18.64964886,127.84,127.79,54.01621248]
[1744827081642,54.01621248,127.81,127.73,26.0]
[1744827081869,54.01621248,127.81,127.76,54.01621248]
[1744827082165,54.01621248,127.8,127.75,26.0]
[1744827082356,18.64964886,127.84,127.75,80.01621248]
[1744827082552,54.01621248,127.8,127.75,87.84380474]
[1744827082762,54.01621248,127.76,127.66,7.83330722]
[1744827083063,7.82288977,127.83,127.75,54.01621248]
[1744827083246,54.01621248,127.82,127.77,54.01621248]
[1744827083452,18.64964886,127.77,127.66,28.84895144]
[1744827083669,54.01621248,127.74,127.69,54.01621248]
[1744827083853,18.64964886,127.79,127.7,54.01621248]
[1744827084059,54.01621248,127.76,127.71,54.01621248]
[1744827084256,54.01621248,127.76,127.69,26.0]
[1744827084257,27.3801142,127.83,127.72,26.0]
[1744827084454,27.3801142,127.83,127.69,26.0]
[1744827084455,7.82288977,127.83,127.77,54.01621248]
[1744827084672,7.82288977,127.83,127.75,26.0]
[1744827084673,54.01621248,127.81,127.75,26.0]
[1744827084850,54.01621248,127.81,127.74,54.01621248]
[1744827084851,54.01621248,127.79,127.74,54.01621248]
[1744827085176,54.01621248,127.77,127.73,54.01621248]
[1744827085367,54.01621248,127.76,127.71,80.01621248]
[1744827085746,54.01621248,127.76,127.71,26.0]
[1744827085967,18.79181043,127.79,127.67,7.83269366]
[1744827086154,54.01621248,127.72,127.67,61.84890614]
[1744827086349,54.01621248,127.7,127.66,61.84928854]
[1744827086557,54.01621248,127.71,127.66,61.84928854]
[1744827086777,54.01621248,127.68,127.63,7.83514847]
[1744827086977,54.01621248,127.65,127.59,27.43153206]
[1744827087271,54.01621248,127.68,127.56,62.72671248]
[1744827087272,54.01621248,127.62,127.58,7.8380244]
[1744827087476,54.01621248,127.61,127.57,61.85480582]
[1744827087677,54.01621248,127.61,127.56,0.063]
[1744827087678,54.01621248,127.59,127.56,0.063]
[1744827087871,54.01621248,127.58,127.56,0.063]
[1744827088069,54.01621248,127.61,127.56,7.9022739]
[1744827088277,8.7651,127.65,127.56,7.9022739]
[1744827088278,54.01621248,127.62,127.57,54.01621248]
[1744827088451,54.01621248,127.6,127.56,0.063]
[1744827088652,54.01621248,127.61,127.56,54.07921248]
[1744827088862,8.7651,127.65,127.59,54.01621248]
[1744827089062,7.82979865,127.72,127.65,26.0]
[1744827089260,7.82717595,127.76,127.67,54.01621248]
[1744827089466,54.01621248,127.69,127.64,54.01621248]
[1744827089671,54.01621248,127.69,127.6,26.0]
[1744827089672,54.01621248,127.65,127.59,26.0]
[1744827089974,30.58216157,127.7,127.61,54.01621248]
[1744827089975,18.64964886,127.69,127.61,54.01621248]
[1744827090176,30.44,127.7,127.61,54.01621248]
[1744827090483,54.01621248,127.67,127.62,54.01621248]
[1744827090651,30.44,127.7,127.62,54.01621248]
[1744827090857,7.8296306,127.72,127.63,26.0]
[1744827091074,18.64964886,127.71,127.63,80.01621248]
[1744827091270,18.64964886,127.71,127.62,54.01621248]
[1744827091475,54.01621248,127.66,127.61,54.01621248]
[1744827091670,7.8296306,127.72,127.63,26.0]
[1744827091880,8.3939,127.77,127.71,54.01621248]
[1744827092175,19.85401387,127.8,127.75,54.01621248]
[1744827092364,7.82475124,127.8,127.74,54.01621248]
[1744827092553,38.28289785,127.83,127.79,54.01621248]
[1744827092879,54.01621248,127.8,127.74,33.82821173]
[1744827093059,54.01621248,127.8,127.71,7.83024038]
[1744827093060,54.01621248,127.76,127.71,7.83024038]
[1744827093254,54.01621248,127.75,127.71,33.83024038]
[1744827093455,54.01621248,127.76,127.71,87.84645286]
[1744827093778,54.01621248,127.78,127.73,54.01621248]
[1744827094118,54.01621248,127.8,127.75,54.01621248]
[1744827094279,54.01621248,127.81,127.76,54.01621248]
[1744827094481,45.55418961,127.85,127.76,54.01621248]
[1744827094482,7.81921964,127.89,127.8,54.01621248]
[1744827094780,54.01621248,127.84,127.77,7.82656335]
[1744827094976,54.01621248,127.8,127.72,30.46]
[1744827095283,54.01621248,127.77,127.73,7.82901432]
[1744827095581,54.01621248,127.8,127.73,54.01621248]
[1744827095761,54.01621248,127.78,127.73,54.01621248]
[1744827095963,54.01621248,127.78,127.72,7.82944371]
[1744827096159,54.01621248,127.77,127.72,61.84565619]
[1744827096361,54.01621248,127.74,127.69,54.01621248]
[1744827096682,54.01621248,127.74,127.7,61.84706604]
[1744827096997,7.82166601,127.85,127.76,26.0]
[1744827097160,27.36940881,127.88,127.8,54.01621248]
[1744827097482,54.01621248,127.81,127.73,26.0]
[1744827097684,54.01621248,127.74,127.68,7.8320802]
[1744827097982,18.64964886,127.81,127.73,54.01621248]
[1744827098164,54.01621248,127.77,127.71,26.0]
[1744827098360,54.01621248,127.78,127.73,54.01621248]
[1744827098561,61.84277674,127.77,127.72,54.01621248]
[1744827098877,54.01621248,127.73,127.64,7.83453462]
[1744827099077,54.01621248,127.71,127.65,54.01621248]
[1744827099261,54.01621248,127.71,127.64,7.83453462]
[1744827099455,54.01621248,127.72,127.67,54.01621248]
[1744827099686,54.01621248,127.72,127.64,7.83453462]
[1744827099874,54.01621248,127.74,127.69,54.01621248]
[1744827100072,54.01621248,127.74,127.64,27.42087119]
[1744827100073,54.01621248,127.75,127.7,54.01621248]
[1744827100387,54.01621248,127.77,127.72,54.01621248]
[1744827100686,54.01621248,127.73,127.66,26.0]
[1744827100877,18.64964886,127.75,127.68,54.01621248]
[1744827101066,54.01621248,127.71,127.66,54.01621248]
[1744827101265,54.01621248,127.71,127.67,54.01621248]
[1744827101464,54.01621248,127.73,127.68,54.01621248]
[1744827101680,54.01621248,127.73,127.69,54.01621248]
[1744827102075,54.01621248,127.73,127.67,26.0]
[1744827102286,54.01621248,127.71,127.67,80.01621248]
[1744827102589,54.01621248,127.74,127.69,54.01621248]
[1744827102763,26.14216157,127.79,127.63,30.46]
[1744827102764,54.01621248,127.76,127.71,54.01621248]
[1744827102963,54.01621248,127.76,127.68,54.01621248]
[1744827103182,54.01621248,127.76,127.71,54.01621248]
[1744827103390,7.82044263,127.87,127.75,80.01621248]
[1744827103681,7.82044263,127.87,127.81,54.01621248]
[1744827103682,54.01621248,127.86,127.81,54.01621248]
[1744827103987,54.01621248,127.83,127.75,26.0]
[1744827104160,54.01621248,127.83,127.71,30.46]
[1744827104161,54.01621248,127.8,127.71,30.46]
[1744827104360,54.01621248,127.8,127.75,54.01621248]
[1744827104566,54.01621248,127.81,127.76,54.01621248]
[1744827104766,54.01621248,127.81,127.71,56.46]
[1744827104767,54.01621248,127.8,127.75,54.01621248]
[1744827104987,54.01621248,127.86,127.77,54.01621248]
[1744827105288,54.01621248,127.83,127.79,54.01621248]
[1744827105584,54.01621248,127.83,127.78,54.01621248]
[1744827105978,54.01621248,127.83,127.79,54.01621248]
[1744827106176,26.47083135,127.86,127.79,61.84138525]
[1744827106383,54.01621248,127.84,127.79,54.01621248]
[1744827106576,54.01621248,127.85,127.8,54.01621248]
[1744827106892,54.01621248,127.86,127.81,54.01621248]
[1744827107189,54.01621248,127.86,127.78,53.39062293]
[1744827107190,0.03,127.89,127.85,54.01621248]
[1744827107490,54.04621248,127.89,127.85,54.01621248]
[1744827107688,54.04621248,127.89,127.8,54.01621248]
[1744827107689,54.01621248,127.86,127.8,54.01621248]
[1744827107896,54.01621248,127.85,127.8,54.01621248]
[1744827108094,0.03,127.89,127.85,7.82166601]
[1744827108292,0.03,127.89,127.85,54.01621248]
[1744827108600,0.03,127.89,127.83,61.83888177]
[1744827108785,0.03,127.89,127.85,54.01621248]
[1744827108966,0.03,127.89,127.83,7.82266929]
[1744827109167,54.04621248,127.89,127.85,54.01621248]
[1744827109368,54.01621248,127.86,127.78,19.56478908]
[1744827109596,54.01621248,127.85,127.81,54.01621248]
[1744827109782,0.03,127.89,127.84,54.01621248]
[1744827110087,54.04621248,127.89,127.85,54.01621248]
[1744827110296,0.03,127.89,127.85,7.82145843]
[1744827110466,0.03,127.89,127.86,54.01621248]
[1744827110884,0.03,127.89,127.85,7.82145843]
[1744827111072,0.03,127.89,127.87,54.01621248]
[1744827111568,54.01621248,127.88,127.82,26.0]
[1744827111769,0.03,127.89,127.85,54.01621248]
[1744827112071,0.03,127.89,127.86,54.01621248]
[1744827112391,54.01621248,127.87,127.8,7.82472613]
[1744827112696,7.84921964,127.89,127.8,107.40275394]
[1744827112877,7.84921964,127.89,127.84,54.01621248]
[1744827113082,54.01621248,127.86,127.8,7.82472613]
[1744827113277,54.01621248,127.85,127.8,54.01621248]
[1744827113480,54.01621248,127.83,127.78,54.01621248]
[1744827113896,54.01621248,127.81,127.77,54.01621248]
[1744827114296,61.84039455,127.81,127.77,80.01621248]
[1744827114593,54.01621248,127.83,127.79,54.01621248]
[1744827114783,54.01621248,127.82,127.78,54.01621248]
[1744827114988,54.01621248,127.82,127.77,87.84274041]
[1744827115172,54.01621248,127.78,127.69,7.83146683]
[1744827115494,54.01621248,127.76,127.71,54.01621248]
[1744827115698,18.64964886,127.79,127.69,27.41013391]
[1744827115997,54.01621248,127.7,127.63,0.063]
[1744827116295,54.01621248,127.67,127.63,0.063]
[1744827116489,54.01621248,127.66,127.63,0.063]
[1744827116871,54.01621248,127.64,127.63,0.063]
[1744827118501,7.83453462,127.64,127.63,0.063]
[1744827118682,80.50039596,127.64,127.63,0.063]
[1744827118887,154.24510658,127.64,127.58,0.063]
[1744827119132,126.68207382,127.59,127.58,0.063]
[1744827119406,126.68207382,127.59,127.56,0.063]
[1744827119407,126.68207382,127.57,127.56,0.063]
[1744827119579,18.64964886,127.61,127.56,0.063]
[1744827119775,29.92,127.63,127.56,54.07921248]
[1744827119972,7.83453462,127.64,127.57,54.01621248]
[1744827120202,7.83453462,127.64,127.56,0.063]
[1744827120403,306.01029644,127.65,127.6,54.01621248]
[1744827120602,18.64964886,127.64,127.58,54.01621248]
[1744827120904,18.64964886,127.58,127.56,0.063]
[1744827121079,126.68207382,127.57,127.51,0.063]
[1744827121283,54.01621248,127.52,127.51,0.063]
[1744827121599,29.92,127.6,127.51,61.92142498]
[1744827121809,54.01621248,127.61,127.56,54.01621248]
[1744827121990,7.83408396,127.65,127.59,54.01621248]
[1744827122190,73.59745586,127.68,127.59,54.01621248]
[1744827122191,29.92,127.72,127.64,54.01621248]
[1744827122393,54.01621248,127.7,127.65,54.01621248]
[1744827122686,54.01621248,127.68,127.6,7.83656186]
[1744827122881,29.92,127.72,127.67,54.01621248]
[1744827123079,108.03242496,127.68,127.58,26.0]
[1744827123283,54.01621248,127.64,127.59,54.01621248]
[1744827123497,54.01621248,127.62,127.57,54.01621248]
[1744827123697,54.01621248,127.6,127.54,0.063]
[1744827124017,29.92,127.65,127.58,54.01621248]
[1744827124309,54.01621248,127.64,127.59,54.01621248]
[1744827124604,29.92,127.65,127.61,54.01621248]
[1744827124789,54.01621248,127.66,127.61,54.01621248]
[1744827124997,7.83085356,127.7,127.63,54.01621248]
[1744827125301,26.48050242,127.7,127.63,54.01621248]
[1744827125494,244.24,127.74,127.67,54.01621248]
[1744827125690,54.01621248,127.75,127.7,54.01621248]
[1744827126003,8.8742,127.79,127.73,54.01621248]
[1744827126210,54.01621248,127.79,127.74,54.01621248]
[1744827126386,61.84114374,127.8,127.75,54.01621248]
[1744827126584,108.03242496,127.76,127.63,8.85]
[1744827126802,54.01621248,127.69,127.64,54.01621248]
[1744827127114,29.92,127.75,127.68,54.01621248]
[1744827127405,29.92,127.75,127.71,54.01621248]
[1744827127406,83.93621248,127.75,127.71,54.01621248]
[1744827127578,61.84114374,127.8,127.72,54.01621248]
[1744827127784,61.84114374,127.8,127.71,26.0]
[1744827128086,54.01621248,127.76,127.71,54.01621248]
[1744827128507,54.01621248,127.78,127.73,54.01621248]
[1744827128816,54.01621248,127.77,127.72,54.01621248]
[1744827128991,54.01621248,127.77,127.73,54.01621248]
[1744827129193,54.01621248,127.74,127.69,54.01621248]
[1744827129396,26.14216157,127.79,127.7,54.01621248]
[1744827129397,54.01621248,127.75,127.7,54.01621248]
[1744827129600,7.82472613,127.8,127.74,54.01621248]
[1744827129801,61.84093861,127.8,127.75,54.01621248]
[1744827130004,54.01621248,127.77,127.68,111.34834618]
[1744827130203,0.28432314,127.78,127.65,19.5833946]
[1744827130392,54.01621248,127.72,127.67,54.01621248]
[1744827130600,54.01621248,127.72,127.63,27.42301966]
[1744827130915,54.01621248,127.69,127.64,54.01621248]
[1744827131085,54.01621248,127.71,127.67,54.01621248]
[1744827131287,54.01621248,127.73,127.64,26.0]
[1744827131486,54.01621248,127.7,127.65,54.01621248]
[1744827131687,54.01621248,127.69,127.63,7.83514847]
[1744827132013,54.01621248,127.7,127.65,54.01621248]
[1744827132312,54.01621248,127.66,127.57,7.83883358]
[1744827132488,54.01621248,127.63,127.56,73.676318]
[1744827132689,54.01621248,127.64,127.57,26.0]
[1744827132884,7.83330722,127.66,127.57,26.0]
[1744827132885,7.83330722,127.66,127.59,54.01621248]
[1744827133111,8.7229,127.73,127.65,54.01621248]
[1744827133292,80.49487566,127.73,127.68,54.01621248]
[1744827133493,54.01621248,127.69,127.62,54.01621248]
[1744827133713,54.01621248,127.67,127.59,26.0]
[1744827133911,54.01621248,127.68,127.63,54.01621248]
[1744827134133,54.01621248,127.67,127.59,26.0]
[1744827134318,54.01621248,127.63,127.56,0.063]
[1744827134491,54.01621248,127.62,127.58,54.01621248]
[1744827134992,7.83516037,127.63,127.56,0.063]
[1744827135300,54.01621248,127.61,127.56,0.063]
[1744827135516,54.01621248,127.58,127.56,0.063]
[1744827135724,126.68207382,127.57,127.56,0.063]
[1744827135927,18.64964886,127.56,127.54,0.063]
[1744827136226,72.80802291,127.55,127.54,0.063]
[1744827136417,80.50592406,127.55,127.54,0.063]
[1744827136600,80.64808563,127.55,127.54,0.063]
[1744827136795,106.93240877,127.55,127.54,1e-08]
[1744827137016,18.64964886,127.51,127.47,30.0]
[1744827137215,18.64964886,127.43,127.41,0.063]
[1744827137396,72.80802291,127.42,127.41,0.063]
[1744827137602,29.92,127.43,127.41,0.063]
[1744827137799,72.66586134,127.42,127.41,0.063]
[1744827137999,18.64964886,127.48,127.41,54.07921248]
[1744827138197,18.64964886,127.48,127.41,0.063]
[1744827138198,0.14216157,127.47,127.41,0.063]
[1744827138517,29.92,127.49,127.44,54.01621248]
[1744827138716,91.78048966,127.49,127.44,54.01621248]
[1744827139021,54.01621248,127.48,127.43,54.01621248]
[1744827139320,54.01621248,127.44,127.41,0.063]
[1744827139892,54.01621248,127.45,127.41,0.063]
[1744827140121,54.01621248,127.47,127.41,0.063]
[1744827140421,54.01621248,127.45,127.41,0.063]
[1744827140618,18.64964886,127.48,127.42,54.01621248]
[1744827140826,54.01621248,127.46,127.41,0.063]
[1744827141024,54.01621248,127.45,127.41,0.063]
[1744827141223,54.01621248,127.44,127.41,0.063]
[1744827141433,29.92,127.49,127.43,54.01621248]
[1744827141602,29.92,127.49,127.44,54.01621248]
[1744827141603,83.93621248,127.49,127.44,54.01621248]
[1744827141926,54.01621248,127.5,127.45,54.01621248]
[1744827142127,54.01621248,127.56,127.41,26.063]
[1744827142128,20.0,127.6,127.49,54.01621248]
[1744827142423,54.01621248,127.56,127.47,26.0]
[1744827142724,244.46,127.58,127.52,54.01621248]
[1744827142922,54.01621248,127.57,127.52,54.01621248]
[1744827143120,54.01621248,127.53,127.41,0.063]
[1744827143326,54.01621248,127.56,127.47,54.01621248]
[1744827143327,54.01621248,127.52,127.47,54.01621248]
[1744827143509,54.01621248,127.53,127.48,54.01621248]
[1744827143708,54.01621248,127.52,127.48,54.01621248]
[1744827143930,0.28432314,127.57,127.51,54.01621248]
[1744827143931,18.64964886,127.57,127.51,54.01621248]
[1744827144162,18.64964886,127.57,127.47,26.0]
[1744827144163,18.64964886,127.57,127.52,54.01621248]
[1744827144300,72.66586134,127.57,127.52,54.01621248]
[1744827144497,54.01621248,127.56,127.51,54.01621248]
[1744827144700,54.01621248,127.52,127.46,54.01621248]
[1744827145026,54.01621248,127.55,127.5,54.01621248]
[1744827145720,54.01621248,127.53,127.48,54.01621248]
[1744827146023,54.01621248,127.52,127.47,54.01621248]
[1744827146209,54.01621248,127.49,127.44,54.01621248]
[1744827146407,54.01621248,127.52,127.47,54.01621248]
[1744827146613,54.01621248,127.53,127.48,54.01621248]
[1744827147011,54.01621248,127.52,127.48,54.01621248]
[1744827147330,54.01621248,127.49,127.45,26.0]
[1744827147514,54.01621248,127.5,127.45,61.86229933]
[1744827148025,54.01621248,127.48,127.43,61.86361347]
[1744827148202,54.01621248,127.5,127.45,54.01621248]
[1744827148408,48.58964886,127.52,127.46,54.01621248]
[1744827148604,29.94,127.52,127.45,26.0]
[1744827148811,54.01621248,127.51,127.45,26.0]
[1744827149018,54.01621248,127.51,127.46,61.86171027]
[1744827149322,54.01621248,127.5,127.45,54.01621248]
[1744827150006,54.01621248,127.5,127.44,7.84682988]
[1744827150007,29.94,127.52,127.47,54.01621248]
[1744827150313,54.01621248,127.51,127.46,54.01621248]
[1744827150528,54.01621248,127.49,127.44,61.86304236]
[1744827150728,54.01621248,127.48,127.44,61.86304236]
[1744827150929,54.01621248,127.49,127.44,61.86304236]
[1744827151231,54.01621248,127.5,127.45,54.01621248]
[1744827152341,54.01621248,127.5,127.44,7.84682988]
[1744827152538,54.01621248,127.46,127.42,7.84786193]
[1744827152741,54.01621248,127.5,127.41,0.063]
[1744827152742,54.01621248,127.45,127.41,0.063]
[1744827152934,7.84449909,127.48,127.41,61.92788997]
[1744827153150,54.01621248,127.49,127.44,54.01621248]
[1744827153439,18.64964886,127.5,127.43,54.01621248]
[1744827153738,54.01621248,127.48,127.43,54.01621248]
[1744827154038,29.94,127.52,127.47,54.01621248]
[1744827154242,29.94,127.52,127.48,54.01621248]
[1744827154445,83.95621248,127.52,127.47,54.01621248]
[1744827154651,7.83922391,127.57,127.51,54.01621248]
[1744827154942,54.01621248,127.56,127.51,54.01621248]
[1744827155117,54.01621248,127.52,127.47,26.0]
[1744827155317,54.01621248,127.5,127.42,7.84806152]
[1744827155520,54.01621248,127.43,127.41,0.063]
[1744827155737,54.01621248,127.42,127.41,0.063]
[1744827155943,72.66586134,127.42,127.41,0.063]
[1744827156146,54.01621248,127.42,127.41,0.063]
[1744827156528,72.80802291,127.42,127.41,0.063]
[1744827156721,54.01621248,127.44,127.41,0.063]
[1744827157035,80.51392286,127.42,127.41,0.063]
[1744827157420,80.65608443,127.42,127.41,0.063]
[1744827157942,110.47392286,127.42,127.41,0.063]
[1744827158144,110.90040757,127.42,127.41,0.063]
[1744827158347,0.28432314,127.4,127.33,0.063]
[1744827158531,54.01621248,127.37,127.33,0.063]
[1744827158729,54.01621248,127.34,127.33,0.063]
[1744827159719,80.51885332,127.34,127.33,0.063]
[1744827160120,134.96155051,127.34,127.33,0.063]
[1744827160928,134.5350658,127.34,127.33,0.063]
[1744827161249,18.64964886,127.33,127.29,0.063]
[1744827161623,54.01621248,127.3,127.29,0.063]
[1744827161945,72.80802291,127.3,127.29,0.063]
[1744827162650,73.09234605,127.3,127.29,0.063]
[1744827163023,7.85299198,127.34,127.29,0.063]
[1744827163245,54.01621248,127.33,127.29,0.063]
[1744827163829,54.01621248,127.3,127.29,0.063]
[1744827164033,18.64964886,127.32,127.29,0.063]
[1744827164034,18.64964886,127.33,127.29,0.063]
[1744827164225,244.8,127.35,127.29,0.063]
[1744827164533,7.85191463,127.36,127.29,0.063]
[1744827164740,54.01621248,127.36,127.31,54.01621248]
[1744827164948,49.60451833,127.4,127.31,54.01621248]
[1744827165244,54.01621248,127.34,127.29,26.063]
[1744827165447,54.01621248,127.35,127.3,54.01621248]
[1744827165750,54.01621248,127.36,127.31,54.01621248]
[1744827166249,26.49972162,127.39,127.29,53.55909292]
[1744827166546,244.9,127.44,127.38,54.01621248]
[1744827166756,54.01621248,127.39,127.32,80.01621248]
[1744827167053,54.01621248,127.39,127.34,54.01621248]
[1744827167250,54.01621248,127.38,127.33,7.85360873]
[1744827167438,54.01621248,127.38,127.33,61.86982121]
[1744827167640,54.01621248,127.37,127.32,61.87025317]
[1744827167848,54.01621248,127.36,127.32,7.85404069]
[1744827168049,26.49894242,127.4,127.34,54.01621248]
[1744827168246,54.01621248,127.41,127.36,54.01621248]
[1744827168555,298.91621248,127.44,127.39,54.01621248]
[1744827168757,54.01621248,127.43,127.38,54.01621248]
[1744827169257,54.01621248,127.43,127.38,61.86669687]
[1744827169448,54.01621248,127.4,127.32,54.01621248]
[1744827169647,54.01621248,127.41,127.36,54.01621248]
[1744827169958,54.01621248,127.39,127.33,7.85360873]
[1744827170137,54.01621248,127.41,127.36,54.01621248]
[1744827170534,54.01621248,127.42,127.37,54.01621248]